Workbook

Sheet 案内ガイド
A1: ※次のいずれかの該当する欄に「１」を入力し「決定」ボタンをクリックしてください。
A3: ① 今年度 | B3: 「60歳」になる
B4: (S38.4.2～S39.4.1生れの方)
A6: ② 今年度 | B6: 女性で「62歳」になる
B7: (S36.4.2～S37.4.1生れの方)
A9: ③ 今年度 | B9: 男性で「64歳」になる
B10: (S34.4.2～S35.4.1生れの方)
A12: ③ 今年度 | B12: 「65歳」になる | C12: 1
B13: (S34.4.2～S35.4.1生れの方)

Sheet 65歳①
B1: 【世帯の状況】
F2: （※黄色の箇所を入力してください。）
A3: ⑴ | B3: あなたの６５歳の誕生月と性別を入力してください。 | H3: ⑶ あなたの家計の状態を入力してみましょう。
B4: （ただし、「１日」が誕生日の場合は、誕生月の「前月」を入力してください。） | I4: （参考）家計調査年報（家計収支編）（総務省統計局：http://www.stat.go.jp/data/kakei/npsf.html）を加工して作成
A5: ① | B5: あなたの誕生月 | C5: 12 | D5: 月 | H5: 自分の家の家計 | I5: 夫婦無職世帯年間生活費平均 | K5: 2018年 | L5: 2019年 | M5: 2020年 | N5: 2021年 | O5: 2022年
A6: ② | B6: あなたの性別は | C6: 1 | I6: 公的年金等 | J6: =AVERAGE(K6:O6) -> 215529.4 | K6: 203824 | L6: 216910 | M6: 219976 | N6: 216519 | O6: 220418
B7: （※男性「１」、女性「２」を入力してください。） | I7: 賃金他 | J7: =AVERAGE(K7:O7) -> 24464.2 | K7: 19011 | L7: 20750 | M7: 36685 | N7: 20056 | O7: 25819
A8: ⑵ | B8: あなたには配偶者がいますか？ | I8: 税・保険料 | J8: =AVERAGE(K8:O8) -> 30742 | K8: 29092 | L8: 30982 | M8: 31160 | N8: 30664 | O8: 31812
B9: （※配偶者がいない場合は、「決定」をクリックして次へ進んでください。） | H9: =H6+H7-H8 -> 0 | I9: 可処分所得 | J9: 209251.6 | K9: 193743 | L9: 206678 | M9: 225501 | N9: 205911 | O9: 214425
A10: ① | B10: 配偶者がいる？ | C10: 1 | H10: 231973 | I10: 食料 | J10: =AVERAGE(K10:O10) -> 66229.2 | K10: 65319 | L10: 66458 | M10: 65804 | N10: 65789 | O10: 67776
B11: （※配偶者がいる場合は「１」を入力してください。） | I11: 住居 | J11: =AVERAGE(K11:O11) -> 14768.8 | K11: 13625 | L11: 13625 | M11: 14518 | N11: 16498 | O11: 15578
A12: ② | B12: 配偶者の性別は？ | C12: 2 | I12: 水道・光熱 | J12: 20368 | K12: 19905 | L12: 19983 | M12: 19845 | N12: 19496 | O12: 22611
B13: （※男性「１」、女性「２」を入力してください。） | I13: 家具・家事用品 | J13: 10109.6 | K13: 9385 | L13: 10100 | M13: 10258 | N13: 10434 | O13: 10371
A14: ③ | B14: 配偶者の年齢は今年の誕生日で何歳になりますか？ | I14: 被服・履物 | J14: 5395.8 | K14: 6171 | L14: 6065 | M14: 4699 | N14: 5041 | O14: 5003
C15: 58 | D15: 歳（54歳～70歳で入力してください。） | I15: 保健・医療 | J15: 15768.2 | K15: 15181 | L15: 15759 | M15: 16057 | N15: 16163 | O15: 15681
A16: ④ | B16: 配偶者の誕生月を入力してください。 | I16: 交通・通信 | J16: 27460.8 | K16: 28071 | L16: 28328 | M16: 26795 | N16: 25232 | O16: 28878
B17: （ただし、「１日」が誕生日の場合は、誕生月の「前月」を入力してください。） | I17: 教育 | J17: 6.2 | K17: 2 | L17: 20 | M17: 4 | N17: 2 | O17: 3
B18: 配偶者の誕生月 | C18: 2 | D18: 月 | I18: 教養・娯楽 | J18: 21861 | K18: 24239 | L18: 24804 | M18: 19658 | N18: 19239 | O18: 21365
I19: 交際費他 | J19: 50249.2 | K19: 53717 | L19: 54805 | M19: 46752 | N19: 46542 | O19: 49430
A20: （※入力が終わったら「次へ進む」ボタンをクリックしてください。） | H20: =SUM(H10:H19) -> 231973 | I20: 支出計 | J20: 232216.8 | K20: 235615 | L20: 239947 | M20: 224390 | N20: 224436 | O20: 236696
H21: =H9-H20 -> -231973 | I21: 過不足 | J21: -22965.2 | K21: -41872 | L21: -33269 | M21: 1111 | N21: -18525 | O21: -22271
H22: =H6+H7 -> 0 | I22: 総収入額 | J22: =J6+J7 -> 239993.6 | K22: （公的年金＋賃金他）
H23: =H8+H20 -> 231973 | I23: 総支出額 | J23: =J8+J20 -> 262958.8 | K23: （支出計＋税・保険料）

Sheet 65歳②
B1: 【年金の状況と今後の希望】 | H1: （※黄色の箇所を入力してください。）
A2: ⑴ | B2: あなたの年金額を入力してください。 | H2: ⑵ 配偶者の年金額を入力してください。
A3: （※可能なら「年金定期便」にある「６５歳」時点の見込額を入力しましょう。） | H3: （※可能なら「年金定期便」にある「６５歳」時点の見込額も入力しましょう。）
D4: ６５歳時点 | J4: 65歳未満 | L4: 65歳以上
A5: ➊ | B5: 老齢基礎年金 | D5: 777800 | E5: 円 | H5: ➊老齢基礎年金（又は定額部分の額） | J5: 0 | K5: 円 | L5: 777800 | M5: 円
F6: 報酬比例計 | I6: 報酬比例計 | N6: 報酬比例計
A7: ❷ | B7: 老齢厚生年金 | D7: =D8+D9+D11+D12+D13+D15+D16+D17 -> 1205600 | E7: 円 | F7: =D8+D11+D15 -> 1200000 | H7: ❷老齢厚生年金 | I7: =J8+J11+J15 -> 835000 | J7: =J8+J9+J11+J12+J13+J15+J16+J17 -> 835000 | K7: 円 | L7: =L8+L9+L11+L12+L13+L15+L16+L17 -> 1202400 | M7: 円 | N7: =L8+L11+L15 -> 1200000
B8: ①一般厚生年金 | C8: 報酬比例部分 | D8: 1200000 | E8: 円 | F8: 経過加算計 | H8: ①一般厚生年金 | I8: 報酬比例部分 | J8: 835000 | K8: 円 | L8: 1200000 | M8: 円 | N8: 経過加算計
C9: 経過的加算部分 | D9: 5600 | E9: 円 | F9: =D9+D12+D13+D16+D17 -> 5600 | I9: 経過的加算部分 | K9: 円 | L9: 2400 | M9: 円 | N9: =L9+L12+L13+L16+L17 -> 2400
B11: ②公務員厚生年金 | C11: 報酬比例部分 | D11: 0 | E11: 円 | H11: ②公務員厚生年金 | I11: 報酬比例部分 | K11: 円 | L11: 0 | M11: 円
C12: 経過的加算部分 | D12: 0 | E12: 円 | I12: 経過的加算部分 | K12: 円 | L12: 0 | M12: 円
C13: 経過的職域加算額（共済年金） | D13: 0 | E13: 円 | I13: 経過的職域加算額（共済年金） | K13: 円 | L13: 0 | M13: 円
B15: ③私学共済厚生年金 | C15: 報酬比例部分 | D15: 0 | E15: 円 | H15: ③私学共済厚生年金 | I15: 報酬比例部分 | K15: 円 | L15: 0 | M15: 円
C16: 経過的加算部分 | D16: 0 | E16: 円 | I16: 経過的加算部分 | K16: 円 | L16: 0 | M16: 円
C17: 経過的職域加算額（共済年金） | D17: 0 | E17: 円 | I17: 経過的職域加算額（共済年金） | K17: 円 | L17: 0 | M17: 円
A19: ⑶ | B19: 繰下支給の希望の有無と繰下希望の年齢を入力してください。 | H19: ⑷ 配偶者の繰下支給の希望の有無と繰下希望の年齢を入力してください。 | Q19: 生年月日（年齢） | S19: 振替加算額
A20: ➊ | B20: 老齢基礎年金 | H20: ➊ | I20: 老齢基礎年金 | Q20: 54 | R20: 歳以前
Q21: 55 | R21: 歳
B22: ①繰下支給希望の有無 | D22: 1 | E22: 有「１」無「０」を入力 | I22: ①繰下支給希望の有無 | K22: 1 | L22: 有「１」無「０」を入力 | Q22: 56 | R22: 歳
B23: （①「0」の場合に「65」を、「1」の場合に「繰下希望年齢」を②に入力する。） | I23: （①「0」の場合に「65」を、「1」の場合に「繰下希望年齢」を②に入力する。） | Q23: 57 | R23: 歳
B24: ②繰下支給希望年齢 | D24: 67 | E24: 歳（65歳～75歳の範囲で入力する。） | I24: ②繰下支給希望年齢 | K24: 68 | L24: 歳（65歳～75歳の範囲で入力する。） | Q24: 58 | R24: 歳
Q25: 59 | R25: 歳 | S25: 15732
A26: ❷ | B26: 老齢厚生年金 | H26: ❷ | I26: 老齢厚生年金 | Q26: 60 | R26: 歳 | S26: 15732
Q27: 61 | R27: 歳 | S27: 15732
B28: ①繰下支給希望の有無 | D28: 1 | E28: 有「１」無「０」を入力 | I28: ①繰下支給希望の有無 | K28: 1 | L28: 有「１」無「０」を入力 | Q28: 62 | R28: 歳 | S28: 15732
B29: （①「0」の場合に「65」を、「1」の場合に「繰下希望年齢」を②に入力する。） | I29: （①「0」の場合に「65」を、「1」の場合に「繰下希望年齢」を②に入力する。） | Q29: 63 | R29: 歳 | S29: 15732
B30: ②繰下支給希望年齢 | D30: 66 | E30: 歳（65歳～75歳の範囲で入力する。） | I30: ②繰下支給希望年齢 | K30: 67 | L30: 歳（65歳～75歳の範囲で入力する。） | Q30: 64 | R30: 歳 | S30: 21836
Q31: 65 | R31: 歳 | S31: 28176
A32: ⑸ ６５歳以降も在職するか？、在職する場合は年間収入（見込）額を入力してください。 | H32: ⑺ | I32: 厚生年金保険計（加入月数） | L32: 240 | M32: 月 | Q32: 66 | R32: 歳 | S32: 34516
Q33: 67 | R33: 歳 | S33: 40620
A34: ① | B34: 在職予定の有無 | D34: 1 | E34: 有「１」無「０」を入力 | H34: ⑻ | I34: 配偶者の厚生年金保険加入総月数 | L34: 239 | M34: 月 | Q34: 68 | R34: 歳 | S34: 46960
F35: 再評価率 | Q35: 69 | R35: 歳 | S35: 53141
A36: ② | B36: 在職する予定の年齢 | D36: 75 | E36: 歳まで | F36: 0.926 | I36: 配偶者加給年金額加算の有無 | L36: =IF(L34>=240,0,IF(L32>=240,1,0)) -> 1 | M36: 有「１」無「０」を入力 | Q36: 70 | R36: 歳 | S36: 59227
F37: 乗率 | I37: S.18.4.2以降生まれ（224,700円×改定率＋74,900円×改定率） | M37: 令和６年度 | O37: 408100 | P37: 円 | Q37: 年齢 | R37: 1 | S37: 2
A38: ③ | B38: 在職時の年間収入 | D38: 3600000 | E38: 円 | F38: 5.481/1000 | I38: 自身への振替加算の有無 | L38: =IF(L32>=240,0,IF(L34>=240,1,0)) -> 0 | M38: 有「１」無「０」を入力 | P38: S44 | Q38: 55 | R38: 65 | S38: 65
F39: 定時改定額 | P39: S43 | Q39: 56 | R39: 65 | S39: 65
A40: ④ | B40: 支給停止額 | D40: =IF(D42+D43<=D44,0,((D38+F7)-D44*12)/2) -> 0 | E40: 円 | F40: =D38*F36*5.481/1000 -> 18271.4616 | G40: 円 | I40: 配偶者への振替加算の有無 | L40: =IF(L34>=240,0,IF(L32>=240,1,0)) -> 1 | M40: 有「１」無「０」を入力 | P40: S42 | Q40: 57 | R40: 65 | S40: 65
G41: 66 | H41: =IF(D36<G41,0,D38*F36*5.481/1000) -> 18271.4616 | P41: S41 | Q41: 58 | R41: 65 | S41: 65
C42: 基本月額 | D42: =D7/12 -> 100466.6667 | G42: 67 | H42: =IF(D36<G41,0,D38*2*F36*5.481/1000) -> 36542.9232 | P42: S40 | Q42: 59 | R42: 65 | S42: 64
C43: 標準報酬額 | D43: =D38/12 -> 300000 | G43: 68 | H43: =IF(D36<G41,0,D38*3*F36*5.481/1000) -> 54814.3848 | P43: S39 | Q43: 60 | R43: 65 | S43: 64
A44: （R5年3月までは470,000円） | C44: 支給停止基準額 | D44: 480000 | G44: 69 | H44: =IF(D36<G41,0,D38*4*F36*5.481/1000) -> 73085.8464 | P44: S38 | Q44: 61 | R44: 65 | S44: 63
G45: 70 | H45: =IF(D36<G41,0,D38*5*F36*5.481/1000) -> 91357.308 | P45: S37 | Q45: 62 | R45: 65 | S45: 63
A46: ⑹ 配偶者は６５歳以降も在職しますか？在職する場合は年間収入（見込額）を入力してください。 | G46: 71 | H46: =IF(D36<G41,0,D38*5*F36*5.481/1000) -> 91357.308 | I46: ⑼ すべての入力が終わったら「入力完了」ボタンをクリックしてください。 | P46: S36 | Q46: 63 | R46: 65 | S46: 62
G47: 72 | H47: =IF(D36<G41,0,D38*5*F36*5.481/1000) -> 91357.308 | P47: S35 | Q47: 64 | R47: 64 | S47: 62
A48: ① | B48: 在職予定の有無 | D48: 1 | E48: 有「１」無「０」を入力 | G48: 73 | H48: =IF(D36<G41,0,D38*5*F36*5.481/1000) -> 91357.308 | P48: S34 | Q48: 65 | R48: 64 | S48: 61
F49: 再評価率(年上は変更有？) | G49: 74 | H49: =IF(D36<G41,0,D38*5*F36*5.481/1000) -> 91357.308 | P49: S33 | Q49: 66 | R49: 63 | S49: 61
A50: ② | B50: 在職する予定の年齢 | D50: 65 | E50: 歳まで | F50: 0.926 | G50: 75 | H50: =IF(D36<G41,0,D38*5*F36*5.481/1000) -> 91357.308 | P50: S32 | Q50: 67 | R50: 63 | S50: 60
F51: 乗率 | G51: 76 | H51: =IF(D36<G41,0,D38*5*F36*5.481/1000) -> 91357.308 | P51: S31 | Q51: 68 | R51: 62 | S51: 60
A52: ③ | B52: 在職時の年間収入 | D52: 1800000 | E52: 円 | F52: 5.481/1000 | G52: 77 | H52: =IF(D36<G41,0,D38*5*F36*5.481/1000) -> 91357.308 | P52: S30 | Q52: 69 | R52: 62 | S52: 60
C53: 65歳未満 | D53: 65歳以上 | F53: 定時改定額 | P53: S29 | Q53: 70 | R53: 61 | S53: 60
A54: ④ | B54: 支給停止額 | C54: =IF(C56+C57<=D44,0,((D52+I7)-D44*12)/2) -> 0 | D54: =IF(D56+D57<=D44,0,((D52+N7)-D44*12)/2) -> 0 | E54: 円 | F54: =D52*F50*5.481/1000 -> 9135.7308 | G54: 円 | P54: S28 | Q54: 71 | R54: 61 | S54: 60
B56: 基本月額 | C56: =I7/12 -> 69583.33333 | D56: =N7/12 -> 100000
B57: 標準報酬額 | C57: =D52/12 -> 150000 | D57: =D52/12 -> 150000

Sheet 65歳③
A2: ⑴ | B2: 自分の | C2: 年齢 | E2: 65 | F2: 歳 | G2: =E2+1 -> 66 | H2: 歳 | I2: =G2+1 -> 67 | J2: 歳 | K2: =I2+1 -> 68 | L2: 歳 | M2: =K2+1 -> 69 | N2: 歳 | O2: =M2+1 -> 70 | P2: 歳 | Q2: =O2+1 -> 71 | R2: 歳 | S2: =Q2+1 -> 72 | T2: 歳 | U2: =S2+1 -> 73 | V2: 歳 | W2: =U2+1 -> 74 | X2: 歳 | Y2: =W2+1 -> 75 | Z2: 歳 | AA2: =Y2+1 -> 76 | AB2: 歳 | AD2: 繰上下げ率
D3: 西暦 | E3: 2024 | G3: 2025 | I3: 2026 | K3: 2027 | M3: 2028 | O3: 2029 | Q3: 2030 | S3: 2031 | U3: 2032 | W3: 2033 | Y3: 2034 | AA3: 2035 | AD3: 60
D4: 誕生月 | E4: ='65歳①'!C5 -> 12 | F4: 月 | G4: =E4 -> 12 | H4: 月 | I4: =E4 -> 12 | J4: 月 | K4: =E4 -> 12 | L4: 月 | M4: =E4 -> 12 | N4: 月 | O4: =E4 -> 12 | P4: 月 | Q4: =E4 -> 12 | R4: 月 | S4: =E4 -> 12 | T4: 月 | U4: =E4 -> 12 | V4: 月 | W4: =E4 -> 12 | X4: 月 | Y4: =E4 -> 12 | Z4: 月 | AA4: =G4 -> 12 | AB4: 月 | AD4: 61
D5: 繰下率 | E5: 1 | G5: 1.084 | I5: 1.168 | K5: 1.252 | M5: 1.336 | O5: 1.42 | Q5: 1.504 | S5: 1.588 | U5: 1.672 | W5: 1.756 | Y5: 1.84 | AA5: 1.84 | AD5: 62
A6: ➊ | B6: 老齢基礎年金額 | E6: =IF('65歳②'!D22=0,'65歳②'!D5," ") ->  | G6: =IF(E6<" ",E6,IF('65歳②'!D24=66,'65歳②'!D5*'65歳③'!G5," ")) ->  | I6: =IF(G6<" ",G6,IF('65歳②'!D24=67,'65歳②'!D5*'65歳③'!I5," ")) -> 908470.4 | K6: =IF(I6<" ",I6,IF('65歳②'!D24=68,'65歳②'!D5*'65歳③'!K5," ")) -> 908470.4 | M6: =IF(K6<" ",K6,IF('65歳②'!D24=69,'65歳②'!D5*'65歳③'!M5," ")) -> 908470.4 | O6: =IF(M6<" ",M6,IF('65歳②'!D24=70,'65歳②'!D5*'65歳③'!O5," ")) -> 908470.4 | Q6: =IF(O6<" ",O6,IF('65歳②'!D24=71,'65歳②'!D5*'65歳③'!Q5," ")) -> 908470.4 | S6: =IF(Q6<" ",Q6,IF('65歳②'!D24=72,'65歳②'!D5*'65歳③'!S5," ")) -> 908470.4 | U6: =IF(S6<" ",S6,IF('65歳②'!D24=73,'65歳②'!D5*'65歳③'!U5," ")) -> 908470.4 | W6: =IF(U6<" ",U6,IF('65歳②'!D24=74,'65歳②'!D5*'65歳③'!W5," ")) -> 908470.4 | Y6: =IF(W6<" ",W6,IF('65歳②'!D24=75,'65歳②'!D5*'65歳③'!Y5," ")) -> 908470.4 | AA6: =Y6 -> 908470.4 | AD6: 63
B7: 振替加算 | E7: =IF(E20<65," ",IF('65歳②'!D24=65,'65歳②'!S31," ")) ->  | G7: =IF(E7<" ",E7,IF(G20<65," ",IF('65歳②'!L38=0," ",IF('65歳②'!D24>66," ",IF('65歳②'!D24>=65,'65歳②'!S31," "))))) ->  | I7: =IF(G7<" ",G7,IF(I20<65," ",IF('65歳②'!L38=0," ",IF('65歳②'!D24>67," ",IF('65歳②'!D24>=65,'65歳②'!S31," "))))) ->  | K7: =IF(I7<" ",I7,IF(K20<65," ",IF('65歳②'!L38=0," ",IF('65歳②'!D24>68," ",IF('65歳②'!D24>=65,'65歳②'!S31," "))))) ->  | M7: =IF(K7<" ",K7,IF(M20<65," ",IF('65歳②'!L38=0," ",IF('65歳②'!D24>69," ",IF('65歳②'!D24>=65,'65歳②'!S31," "))))) ->  | O7: =IF(M7<" ",M7,IF(O20<65," ",IF('65歳②'!L38=0," ",IF('65歳②'!D24>70," ",IF('65歳②'!D24>=65,'65歳②'!S31," "))))) ->  | Q7: =IF(O7<" ",O7,IF(Q20<65," ",IF('65歳②'!L38=0," ",IF('65歳②'!D24>71," ",IF('65歳②'!D24>=65,'65歳②'!S31," "))))) ->  | S7: =IF(Q7<" ",Q7,IF(S20<65," ",IF('65歳②'!L38=0," ",IF('65歳②'!D24>72," ",IF('65歳②'!D24>=65,'65歳②'!S31," "))))) ->  | U7: =IF(S7<" ",S7,IF(U20<65," ",IF('65歳②'!L38=0," ",IF('65歳②'!D24>73," ",IF('65歳②'!D24>=65,'65歳②'!S31," "))))) ->  | W7: =IF(U7<" ",U7,IF(W20<65," ",IF('65歳②'!L38=0," ",IF('65歳②'!D24>74," ",IF('65歳②'!D24>=65,'65歳②'!S31," "))))) ->  | Y7: =IF(W7<" ",W7,IF(Y20<65," ",IF('65歳②'!L38=0," ",IF('65歳②'!D24>75," ",IF('65歳②'!D24>=65,'65歳②'!S31," "))))) ->  | AA7: =IF(Y7<" ",Y7,IF(AA20<65," ",IF('65歳②'!L38=0," ",IF('65歳②'!D24>76," ",IF('65歳②'!D24>=65,'65歳②'!S31," "))))) ->  | AD7: 64
B8: 小計 | E8: =IF(E7=" ",E6,E6+E7) ->  | G8: =IF(G7=" ",G6,G6+G7) ->  | I8: =IF(I7=" ",I6,I6+I7) -> 908470.4 | K8: =IF(K7=" ",K6,K6+K7) -> 908470.4 | M8: =IF(M7=" ",M6,M6+M7) -> 908470.4 | O8: =IF(O7=" ",O6,O6+O7) -> 908470.4 | Q8: =IF(Q7=" ",Q6,Q6+Q7) -> 908470.4 | S8: =IF(S7=" ",S6,S6+S7) -> 908470.4 | U8: =IF(U7=" ",U6,U6+U7) -> 908470.4 | W8: =IF(W7=" ",W6,W6+W7) -> 908470.4 | Y8: =IF(Y7=" ",Y6,Y6+Y7) -> 908470.4 | AA8: =IF(AA7=" ",AA6,AA6+AA7) -> 908470.4 | AD8: 65 | AE8: 1
AD9: 66 | AE9: 1.084
A10: ❷ | B10: 老齢厚生年金額 | E10: =IF('65歳②'!D28=0,'65歳②'!F7," ") ->  | G10: =IF(E10<" ",E10,IF('65歳②'!D30=66,('65歳②'!F7*G5*IF('65歳②'!D28=0,1,1-('65歳②'!F7+'65歳②'!D38+'65歳②'!H41-'65歳②'!D44*12)/2/'65歳②'!F7))," ")) -> 1811216.868 | I10: =IF(G10<" ",G10,IF('65歳②'!D30=67,('65歳②'!F7*I5*IF('65歳②'!D28=0,1,1-('65歳②'!F7+'65歳②'!D38+'65歳②'!H41-'65歳②'!D44*12)/2/'65歳②'!F7))," ")) -> 1811216.868 | K10: =IF(I10<" ",I10,IF('65歳②'!D30=68,('65歳②'!F7*K5*IF('65歳②'!D28=0,1,1-('65歳②'!F7+'65歳②'!D38+'65歳②'!H41-'65歳②'!D44*12)/2/'65歳②'!F7))," ")) -> 1811216.868 | M10: =IF(K10<" ",K10,IF('65歳②'!D30=69,('65歳②'!F7*M5*IF('65歳②'!D28=0,1,1-('65歳②'!F7+'65歳②'!D38+'65歳②'!H41-'65歳②'!D44*12)/2/'65歳②'!F7))," ")) -> 1811216.868 | O10: =IF(M10<" ",M10,IF('65歳②'!D30=70,('65歳②'!F7*O5*IF('65歳②'!D28=0,1,1-('65歳②'!F7+'65歳②'!D38+'65歳②'!H41-'65歳②'!D44*12)/2/'65歳②'!F7))," ")) -> 1811216.868 | Q10: =IF(O10<" ",O10,IF('65歳②'!D30=71,('65歳②'!F7*Q5*IF('65歳②'!D28=0,1,1-('65歳②'!F7+'65歳②'!D38+'65歳②'!H41-'65歳②'!D44*12)/2/'65歳②'!F7))," ")) -> 1811216.868 | S10: =IF(Q10<" ",Q10,IF('65歳②'!D30=72,('65歳②'!F7*S5*IF('65歳②'!D28=0,1,1-('65歳②'!F7+'65歳②'!D38+'65歳②'!H41-'65歳②'!D44*12)/2/'65歳②'!F7))," ")) -> 1811216.868 | U10: =IF(S10<" ",S10,IF('65歳②'!D30=73,('65歳②'!F7*U5*IF('65歳②'!D28=0,1,1-('65歳②'!F7+'65歳②'!D38+'65歳②'!H41-'65歳②'!D44*12)/2/'65歳②'!F7))," ")) -> 1811216.868 | W10: =IF(U10<" ",U10,IF('65歳②'!D30=74,('65歳②'!F7*W5*IF('65歳②'!D28=0,1,1-('65歳②'!F7+'65歳②'!D38+'65歳②'!H41-'65歳②'!D44*12)/2/'65歳②'!F7))," ")) -> 1811216.868 | Y10: =IF(W10<" ",W10,IF('65歳②'!D30=75,('65歳②'!F7*Y5*IF('65歳②'!D28=0,1,1-('65歳②'!F7+'65歳②'!D38+'65歳②'!H41-'65歳②'!D44*12)/2/'65歳②'!F7))," ")) -> 1811216.868 | AA10: =IF(Y10<" ",Y10,IF('65歳②'!D30=75,('65歳②'!F7*AA5*IF('65歳②'!D28=0,1,1-('65歳②'!F7+'65歳②'!D38+'65歳②'!H41-'65歳②'!D44*12)/2/'65歳②'!F7))," ")) -> 1811216.868 | AD10: 67 | AE10: 1.168
B11: 定時改定増加見込額 | G11: =IF('65歳②'!D34=0,0,IF('65歳②'!D36<G2,IF(G10=" "," ",VLOOKUP('65歳②'!D36,'65歳②'!G41:H52,2,FALSE)),IF(G10=" "," ",'65歳②'!H41))) -> 18271.4616 | I11: =IF('65歳②'!D34=0,0,IF('65歳②'!D36<I2,IF(I10=" "," ",VLOOKUP('65歳②'!D36,'65歳②'!G41:H52,2,FALSE)),IF(I10=" "," ",'65歳②'!H42))) -> 36542.9232 | K11: =IF('65歳②'!D34=0,0,IF('65歳②'!D36<K2,IF(K10=" "," ",VLOOKUP('65歳②'!D36,'65歳②'!G41:H52,2,FALSE)),IF(K10=" "," ",'65歳②'!H43))) -> 54814.3848 | M11: =IF('65歳②'!D34=0,0,IF('65歳②'!D36<M2,IF(M10=" "," ",VLOOKUP('65歳②'!D36,'65歳②'!G41:H52,2,FALSE)),IF(M10=" "," ",'65歳②'!H44))) -> 73085.8464 | O11: =IF('65歳②'!D34=0,0,IF('65歳②'!D36<O2,IF(O10=" "," ",VLOOKUP('65歳②'!D36,'65歳②'!G41:H52,2,FALSE)),IF(O10=" "," ",'65歳②'!H45))) -> 91357.308 | Q11: =IF('65歳②'!D34=0,0,IF('65歳②'!D36<Q2,IF(Q10=" "," ",VLOOKUP('65歳②'!D36,'65歳②'!G41:H52,2,FALSE)),IF(Q10=" "," ",'65歳②'!H46))) -> 91357.308 | S11: =IF('65歳②'!D34=0,0,IF('65歳②'!D36<S2,IF(S10=" "," ",VLOOKUP('65歳②'!D36,'65歳②'!G41:H52,2,FALSE)),IF(S10=" "," ",'65歳②'!H47))) -> 91357.308 | U11: =IF('65歳②'!D34=0,0,IF('65歳②'!D36<U2,IF(U10=" "," ",VLOOKUP('65歳②'!D36,'65歳②'!G41:H52,2,FALSE)),IF(U10=" "," ",'65歳②'!H48))) -> 91357.308 | W11: =IF('65歳②'!D34=0,0,IF('65歳②'!D36<W2,IF(W10=" "," ",VLOOKUP('65歳②'!D36,'65歳②'!G41:H52,2,FALSE)),IF(W10=" "," ",'65歳②'!H49))) -> 91357.308 | Y11: =IF('65歳②'!D34=0,0,IF('65歳②'!D36<Y2,IF(Y10=" "," ",VLOOKUP('65歳②'!D36,'65歳②'!G41:H52,2,FALSE)),IF(Y10=" "," ",'65歳②'!H50))) -> 91357.308 | AA11: =IF('65歳②'!D34=0,0,IF('65歳②'!D36<AA2,IF(AA10=" "," ",VLOOKUP('65歳②'!D36,'65歳②'!G41:H52,2,FALSE)),IF(AA10=" "," ",'65歳②'!H51))) -> 91357.308
B12: 在職支給停止見込額 | E12: =IF(E10=" "," ",IF('65歳②'!D34=0,0,IF((('65歳②'!F7+'65歳②'!D38)-'65歳②'!D44*12)/2<0,0,(('65歳②'!F7+'65歳②'!D38)-'65歳②'!D44*12)/2))) ->  | G12: =IF(G10=" "," ",IF('65歳②'!D34=0,0,IF((('65歳②'!F7+'65歳②'!D38+G11)-'65歳②'!D44*12)/2<0,0,(('65歳②'!F7+'65歳②'!D38+G11)-'65歳②'!D44*12)/2))) -> 0 | I12: =IF(I10=" "," ",IF('65歳②'!D34=0,0,IF((('65歳②'!F7+'65歳②'!D38+I11)-'65歳②'!D44*12)/2<0,0,(('65歳②'!F7+'65歳②'!D38+I11)-'65歳②'!D44*12)/2))) -> 0 | K12: =IF(K10=" "," ",IF('65歳②'!D34=0,0,IF((('65歳②'!F7+'65歳②'!D38+K11)-'65歳②'!D44*12)/2<0,0,(('65歳②'!F7+'65歳②'!D38+K11)-'65歳②'!D44*12)/2))) -> 0 | M12: =IF(M10=" "," ",IF('65歳②'!D34=0,0,IF((('65歳②'!F7+'65歳②'!D38+M11)-'65歳②'!D44*12)/2<0,0,(('65歳②'!F7+'65歳②'!D38+M11)-'65歳②'!D44*12)/2))) -> 0 | O12: =IF(O10=" "," ",IF('65歳②'!D34=0,0,IF((('65歳②'!F7+'65歳②'!D38+O11)-'65歳②'!D44*12)/2<0,0,(('65歳②'!F7+'65歳②'!D38+O11)-'65歳②'!D44*12)/2))) -> 0 | Q12: =IF(Q10=" "," ",IF('65歳②'!D34=0,0,IF((('65歳②'!F7+'65歳②'!D38+Q11)-'65歳②'!D44*12)/2<0,0,(('65歳②'!F7+'65歳②'!D38+Q11)-'65歳②'!D44*12)/2))) -> 0 | S12: =IF(S10=" "," ",IF('65歳②'!D34=0,0,IF((('65歳②'!F7+'65歳②'!D38+S11)-'65歳②'!D44*12)/2<0,0,(('65歳②'!F7+'65歳②'!D38+S11)-'65歳②'!D44*12)/2))) -> 0 | U12: =IF(U10=" "," ",IF('65歳②'!D34=0,0,IF((('65歳②'!F7+'65歳②'!D38+U11)-'65歳②'!D44*12)/2<0,0,(('65歳②'!F7+'65歳②'!D38+U11)-'65歳②'!D44*12)/2))) -> 0 | W12: =IF(W10=" "," ",IF('65歳②'!D34=0,0,IF((('65歳②'!F7+'65歳②'!D38+W11)-'65歳②'!D44*12)/2<0,0,(('65歳②'!F7+'65歳②'!D38+W11)-'65歳②'!D44*12)/2))) -> 0 | Y12: =IF(Y10=" "," ",IF('65歳②'!D34=0,0,IF((('65歳②'!F7+'65歳②'!D38+Y11)-'65歳②'!D44*12)/2<0,0,(('65歳②'!F7+'65歳②'!D38+Y11)-'65歳②'!D44*12)/2))) -> 0 | AA12: =IF(AA10=" "," ",IF('65歳②'!D34=0,0,IF((('65歳②'!F7+'65歳②'!D38+AA11)-'65歳②'!D44*12)/2<0,0,(('65歳②'!F7+'65歳②'!D38+AA11)-'65歳②'!D44*12)/2))) -> 0
B13: 経過的加算(変動有) | E13: =IF(E10=" "," ",'65歳②'!F9) ->  | G13: =IF(E13<" ",E13,IF('65歳②'!D30=66,'65歳②'!F9*G5," ")) -> 6070.4 | I13: =IF(G13<" ",G13,IF('65歳②'!D30=67,'65歳②'!F9*I5," ")) -> 6070.4 | K13: =IF(I13<" ",I13,IF('65歳②'!D30=68,'65歳②'!F9*K5," ")) -> 6070.4 | M13: =IF(K13<" ",K13,IF('65歳②'!D30=69,'65歳②'!F9*M5," ")) -> 6070.4 | O13: =IF(M13<" ",M13,IF('65歳②'!D30=70,'65歳②'!F9*O5," ")) -> 6070.4 | Q13: =IF(O13<" ",O13,IF('65歳②'!D30=71,'65歳②'!F9*Q5," ")) -> 6070.4 | S13: =IF(Q13<" ",Q13,IF('65歳②'!D30=72,'65歳②'!F9*S5," ")) -> 6070.4 | U13: =IF(S13<" ",S13,IF('65歳②'!D30=73,'65歳②'!F9*U5," ")) -> 6070.4 | W13: =IF(U13<" ",U13,IF('65歳②'!D30=74,'65歳②'!F9*W5," ")) -> 6070.4 | Y13: =IF(W13<" ",W13,IF('65歳②'!D30=75,'65歳②'!F9*Y5," ")) -> 6070.4 | AA13: =Y13 -> 6070.4 | AD13: 68 | AE13: 1.252
B14: 配偶者加給年金 | E14: =IF(E10=" "," ",IF(E20>=65," ",IF('65歳②'!L36=0,IF('65歳①'!C12=2,IF(E20<VLOOKUP(E20,'65歳②'!Q38:S54,3,FALSE),'65歳②'!O37," "),IF(E20<VLOOKUP(E20,'65歳②'!Q38:S54,2,FALSE),'65歳②'!O37," ")),'65歳②'!O37))) ->  | G14: =IF(G10=" "," ",IF(G20>=65," ",IF('65歳②'!L36=0,IF('65歳①'!C12=2,IF(G20<VLOOKUP(E20,'65歳②'!Q38:S54,3,FALSE),'65歳②'!O37," "),IF(G20<VLOOKUP(E20,'65歳②'!Q38:S54,2,FALSE),'65歳②'!O37," ")),'65歳②'!O37))) -> 408100 | I14: =IF(I10=" "," ",IF(I20>=65," ",IF('65歳②'!L36=0,IF('65歳①'!C12=2,IF(I20<VLOOKUP(E20,'65歳②'!Q38:S54,3,FALSE),'65歳②'!O37," "),IF(I20<VLOOKUP(E20,'65歳②'!Q38:S54,2,FALSE),'65歳②'!O37," ")),'65歳②'!O37))) -> 408100 | K14: =IF(K10=" "," ",IF(K20>=65," ",IF('65歳②'!L36=0,IF('65歳①'!C12=2,IF(K20<VLOOKUP(E20,'65歳②'!Q38:S54,3,FALSE),'65歳②'!O37," "),IF(K20<VLOOKUP(E20,'65歳②'!Q38:S54,2,FALSE),'65歳②'!O37," ")),'65歳②'!O37))) -> 408100 | M14: =IF(M10=" "," ",IF(M20>=65," ",IF('65歳②'!L36=0,IF('65歳①'!C12=2,IF(M20<VLOOKUP(E20,'65歳②'!Q38:S54,3,FALSE),'65歳②'!O37," "),IF(M20<VLOOKUP(E20,'65歳②'!Q38:S54,2,FALSE),'65歳②'!O37," ")),'65歳②'!O37))) -> 408100 | O14: =IF(O10=" "," ",IF(O20>=65," ",IF('65歳②'!L36=0,IF('65歳①'!C12=2,IF(O20<VLOOKUP(E20,'65歳②'!Q38:S54,3,FALSE),'65歳②'!O37," "),IF(O20<VLOOKUP(E20,'65歳②'!Q38:S54,2,FALSE),'65歳②'!O37," ")),'65歳②'!O37))) -> 408100 | Q14: =IF(Q10=" "," ",IF(Q20>=65," ",IF('65歳②'!L36=0,IF('65歳①'!C12=2,IF(Q20<VLOOKUP(E20,'65歳②'!Q38:S54,3,FALSE),'65歳②'!O37," "),IF(Q20<VLOOKUP(E20,'65歳②'!Q38:S54,2,FALSE),'65歳②'!O37," ")),'65歳②'!O37))) -> 408100 | S14: =IF(S10=" "," ",IF(S20>=65," ",IF('65歳②'!L36=0,IF('65歳①'!C12=2,IF(S20<VLOOKUP(E20,'65歳②'!Q38:S54,3,FALSE),'65歳②'!O37," "),IF(S20<VLOOKUP(E20,'65歳②'!Q38:S54,2,FALSE),'65歳②'!O37," ")),'65歳②'!O37))) ->  | U14: =IF(U10=" "," ",IF(U20>=65," ",IF('65歳②'!L36=0,IF('65歳①'!C12=2,IF(U20<VLOOKUP(E20,'65歳②'!Q38:S54,3,FALSE),'65歳②'!O37," "),IF(U20<VLOOKUP(E20,'65歳②'!Q38:S54,2,FALSE),'65歳②'!O37," ")),'65歳②'!O37))) ->  | W14: =IF(W10=" "," ",IF(W20>=65," ",IF('65歳②'!L36=0,IF('65歳①'!C12=2,IF(W20<VLOOKUP(E20,'65歳②'!Q38:S54,3,FALSE),'65歳②'!O37," "),IF(W20<VLOOKUP(E20,'65歳②'!Q38:S54,2,FALSE),'65歳②'!O37," ")),'65歳②'!O37))) ->  | Y14: =IF(Y10=" "," ",IF(Y20>=65," ",IF('65歳②'!L36=0,IF('65歳①'!C12=2,IF(Y20<VLOOKUP(E20,'65歳②'!Q38:S54,3,FALSE),'65歳②'!O37," "),IF(Y20<VLOOKUP(E20,'65歳②'!Q38:S54,2,FALSE),'65歳②'!O37," ")),'65歳②'!O37))) ->  | AA14: =IF(AA10=" "," ",IF(AA20>=65," ",IF('65歳②'!L36=0,IF('65歳①'!C12=2,IF(AA20<VLOOKUP(E20,'65歳②'!Q38:S54,3,FALSE),'65歳②'!O37," "),IF(AA20<VLOOKUP(E20,'65歳②'!Q38:S54,2,FALSE),'65歳②'!O37," ")),'65歳②'!O37))) ->  | AD14: 69 | AE14: 1.336
B15: 小計 | E15: =IF(E10=" "," ",IF(E14=" ",E10-E12+E13,E10-E12+E13+E14)) ->  | G15: =IF(G10=" "," ",IF(G14=" ",G10-G12+G13,G10-G12+G13+G14)) -> 2225387.268 | I15: =IF(I10=" "," ",IF(I14=" ",I10-I12+I13,I10-I12+I13+I14)) -> 2225387.268 | K15: =IF(K10=" "," ",IF(K14=" ",K10-K12+K13,K10-K12+K13+K14)) -> 2225387.268 | M15: =IF(M10=" "," ",IF(M14=" ",M10-M12+M13,M10-M12+M13+M14)) -> 2225387.268 | O15: =IF(O10=" "," ",IF(O14=" ",O10-O12+O13,O10-O12+O13+O14)) -> 2225387.268 | Q15: =IF(Q10=" "," ",IF(Q14=" ",Q10-Q12+Q13,Q10-Q12+Q13+Q14)) -> 2225387.268 | S15: =IF(S10=" "," ",IF(S14=" ",S10-S12+S13,S10-S12+S13+S14)) -> 1817287.268 | U15: =IF(U10=" "," ",IF(U14=" ",U10-U12+U13,U10-U12+U13+U14)) -> 1817287.268 | W15: =IF(W10=" "," ",IF(W14=" ",W10-W12+W13,W10-W12+W13+W14)) -> 1817287.268 | Y15: =IF(Y10=" "," ",IF(Y14=" ",Y10-Y12+Y13,Y10-Y12+Y13+Y14)) -> 1817287.268 | AA15: =IF(AA10=" "," ",IF(AA14=" ",AA10-AA12+AA13,AA10-AA12+AA13+AA14)) -> 1817287.268 | AD15: 70 | AE15: 1.42
B16: 自身の年金月額 | E16: =(IF(E8=" ",0,E8)+IF(E15=" ",0,E15))/12 -> 0 | G16: =(IF(G8=" ",0,G8)+IF(G15=" ",0,G15))/12 -> 185448.939 | I16: =(IF(I8=" ",0,I8)+IF(I15=" ",0,I15))/12 -> 261154.8057 | K16: =(IF(K8=" ",0,K8)+IF(K15=" ",0,K15))/12 -> 261154.8057 | M16: =(IF(M8=" ",0,M8)+IF(M15=" ",0,M15))/12 -> 261154.8057 | O16: =(IF(O8=" ",0,O8)+IF(O15=" ",0,O15))/12 -> 261154.8057 | Q16: =(IF(Q8=" ",0,Q8)+IF(Q15=" ",0,Q15))/12 -> 261154.8057 | S16: =(IF(S8=" ",0,S8)+IF(S15=" ",0,S15))/12 -> 227146.4723 | U16: =(IF(U8=" ",0,U8)+IF(U15=" ",0,U15))/12 -> 227146.4723 | W16: =(IF(W8=" ",0,W8)+IF(W15=" ",0,W15))/12 -> 227146.4723 | Y16: =(IF(Y8=" ",0,Y8)+IF(Y15=" ",0,Y15))/12 -> 227146.4723 | AA16: =(IF(AA8=" ",0,AA8)+IF(AA15=" ",0,AA15))/12 -> 227146.4723 | AD16: 71 | AE16: 1.504
B17: 自身の給与収入 | E17: =IF('65歳②'!D34=0,0,IF(E2>'65歳②'!D36,0,'65歳②'!D38/12)) -> 300000 | G17: =IF('65歳②'!D34=0,0,IF(G2>='65歳②'!D36,0,'65歳②'!D38/12)) -> 300000 | I17: =IF('65歳②'!D34=0,0,IF(I2>='65歳②'!D36,0,'65歳②'!D38/12)) -> 300000 | K17: =IF('65歳②'!D34=0,0,IF(K2>='65歳②'!D36,0,'65歳②'!D38/12)) -> 300000 | M17: =IF('65歳②'!D34=0,0,IF(M2>='65歳②'!D36,0,'65歳②'!D38/12)) -> 300000 | O17: =IF('65歳②'!D34=0,0,IF(O2>='65歳②'!D36,0,'65歳②'!D38/12)) -> 300000 | Q17: =IF('65歳②'!D34=0,0,IF(Q2>='65歳②'!D36,0,'65歳②'!D38/12)) -> 300000 | S17: =IF('65歳②'!D34=0,0,IF(S2>='65歳②'!D36,0,'65歳②'!D38/12)) -> 300000 | U17: =IF('65歳②'!D34=0,0,IF(U2>='65歳②'!D36,0,'65歳②'!D38/12)) -> 300000 | W17: =IF('65歳②'!D34=0,0,IF(W2>='65歳②'!D36,0,'65歳②'!D38/12)) -> 300000 | Y17: =IF('65歳②'!D34=0,0,IF(Y2>='65歳②'!D36,0,'65歳②'!D38/12)) -> 0 | AA17: =IF('65歳②'!D34=0,0,IF(AA2>='65歳②'!D36,0,'65歳②'!D38/12)) -> 0
B18: 自身の総収入 | E18: =E16+E17 -> 300000 | G18: =G16+G17 -> 485448.939 | I18: =I16+I17 -> 561154.8057 | K18: =K16+K17 -> 561154.8057 | M18: =M16+M17 -> 561154.8057 | O18: =O16+O17 -> 561154.8057 | Q18: =Q16+Q17 -> 561154.8057 | S18: =S16+S17 -> 527146.4723 | U18: =U16+U17 -> 527146.4723 | W18: =W16+W17 -> 527146.4723 | Y18: =Y16+Y17 -> 227146.4723 | AA18: =AA16+AA17 -> 227146.4723
AD19: 72 | AE19: 1.588
A20: ⑵ | B20: 配偶者の | C20: 年齢 | E20: ='65歳①'!C15 -> 58 | F20: 歳 | G20: =E20+1 -> 59 | H20: 歳 | I20: =G20+1 -> 60 | J20: 歳 | K20: =I20+1 -> 61 | L20: 歳 | M20: =K20+1 -> 62 | N20: 歳 | O20: =M20+1 -> 63 | P20: 歳 | Q20: =O20+1 -> 64 | R20: 歳 | S20: =Q20+1 -> 65 | T20: 歳 | U20: =S20+1 -> 66 | V20: 歳 | W20: =U20+1 -> 67 | X20: 歳 | Y20: =W20+1 -> 68 | Z20: 歳 | AA20: =Y20+1 -> 69 | AB20: 歳 | AD20: 73 | AE20: 1.672
D21: 誕生月 | E21: ='65歳①'!C18 -> 2 | F21: 月 | G21: =E21 -> 2 | H21: 月 | I21: =E21 -> 2 | J21: 月 | K21: =E21 -> 2 | L21: 月 | M21: =E21 -> 2 | N21: 月 | O21: =E21 -> 2 | P21: 月 | Q21: =E21 -> 2 | R21: 月 | S21: =E21 -> 2 | T21: 月 | U21: =E21 -> 2 | V21: 月 | W21: =E21 -> 2 | X21: 月 | Y21: =E21 -> 2 | Z21: 月 | AA21: =G21 -> 2 | AB21: 月 | AD21: 74 | AE21: 1.756
D22: 繰下率 | E22: =IF(E20<65," ",IF(E20>=75,AE22,VLOOKUP(E20,AD8:AE22,2,FALSE))) ->  | G22: =IF(G20<65," ",IF(G20>=75,AE22,VLOOKUP(G20,AD8:AE22,2,FALSE))) ->  | I22: =IF(I20<65," ",IF(I20>=75,AE22,VLOOKUP(I20,AD8:AE22,2,FALSE))) ->  | K22: =IF(K20<65," ",IF(K20>=75,AE22,VLOOKUP(K20,AD8:AE22,2,FALSE))) ->  | M22: =IF(M20<65," ",IF(M20>=75,AE22,VLOOKUP(M20,AD8:AE22,2,FALSE))) ->  | O22: =IF(O20<65," ",IF(O20>=75,AE22,VLOOKUP(O20,AD8:AE22,2,FALSE))) ->  | Q22: =IF(Q20<65," ",IF(Q20>=75,AE22,VLOOKUP(Q20,AD8:AE22,2,FALSE))) ->  | S22: =IF(S20<65," ",IF(S20>=75,AE22,VLOOKUP(S20,AD8:AE22,2,FALSE))) -> 1 | U22: =IF(U20<65," ",IF(U20>=75,AE22,VLOOKUP(U20,AD8:AE22,2,FALSE))) -> 1.084 | W22: =IF(W20<65," ",IF(W20>=75,AE22,VLOOKUP(W20,AD8:AE22,2,FALSE))) -> 1.168 | Y22: =IF(Y20<65," ",IF(Y20>=75,AE22,VLOOKUP(Y20,AD8:AE22,2,FALSE))) -> 1.252 | AA22: =IF(AA20<65," ",IF(AA20>=75,AE22,VLOOKUP(AA20,AD8:AE22,2,FALSE))) -> 1.336 | AD22: 75 | AE22: 1.84
A23: ❸ | B23: 老齢基礎年金額 | E23: =IF(E20<60," ",IF(E20<65,IF('65歳②'!J5=0," ",'65歳②'!J5),IF('65歳②'!K22=0,'65歳②'!L5,IF(E20<'65歳②'!K24," ",'65歳②'!L5*E22)))) ->  | G23: =IF(G20<60," ",IF(G20<65,IF('65歳②'!J5=0," ",'65歳②'!J5),IF('65歳②'!K22=0,'65歳②'!L5,IF(G20<'65歳②'!K24," ",IF(G20>'65歳②'!K24,E23,'65歳②'!L5*G22))))) ->  | I23: =IF(I20<60," ",IF(I20<65,IF('65歳②'!J5=0," ",'65歳②'!J5),IF('65歳②'!K22=0,'65歳②'!L5,IF(I20<'65歳②'!K24," ",IF(I20>'65歳②'!K24,G23,'65歳②'!L5*I22))))) ->  | K23: =IF(K20<60," ",IF(K20<65,IF('65歳②'!J5=0," ",'65歳②'!J5),IF('65歳②'!K22=0,'65歳②'!L5,IF(K20<'65歳②'!K24," ",IF(K20>'65歳②'!K24,I23,'65歳②'!L5*K22))))) ->  | M23: =IF(M20<60," ",IF(M20<65,IF('65歳②'!J5=0," ",'65歳②'!J5),IF('65歳②'!K22=0,'65歳②'!L5,IF(M20<'65歳②'!K24," ",IF(M20>'65歳②'!K24,K23,'65歳②'!L5*M22))))) ->  | O23: =IF(O20<60," ",IF(O20<65,IF('65歳②'!J5=0," ",'65歳②'!J5),IF('65歳②'!K22=0,'65歳②'!L5,IF(O20<'65歳②'!K24," ",IF(O20>'65歳②'!K24,M23,'65歳②'!L5*O22))))) ->  | Q23: =IF(Q20<60," ",IF(Q20<65,IF('65歳②'!J5=0," ",'65歳②'!J5),IF('65歳②'!K22=0,'65歳②'!L5,IF(Q20<'65歳②'!K24," ",IF(Q20>'65歳②'!K24,O23,'65歳②'!L5*Q22))))) ->  | S23: =IF(S20<60," ",IF(S20<65,IF('65歳②'!J5=0," ",'65歳②'!J5),IF('65歳②'!K22=0,'65歳②'!L5,IF(S20<'65歳②'!K24," ",IF(S20>'65歳②'!K24,Q23,'65歳②'!L5*S22))))) ->  | U23: =IF(U20<60," ",IF(U20<65,IF('65歳②'!J5=0," ",'65歳②'!J5),IF('65歳②'!K22=0,'65歳②'!L5,IF(U20<'65歳②'!K24," ",IF(U20>'65歳②'!K24,S23,'65歳②'!L5*U22))))) ->  | W23: =IF(W20<60," ",IF(W20<65,IF('65歳②'!J5=0," ",'65歳②'!J5),IF('65歳②'!K22=0,'65歳②'!L5,IF(W20<'65歳②'!K24," ",IF(W20>'65歳②'!K24,U23,'65歳②'!L5*W22))))) ->  | Y23: =IF(Y20<60," ",IF(Y20<65,IF('65歳②'!J5=0," ",'65歳②'!J5),IF('65歳②'!K22=0,'65歳②'!L5,IF(Y20<'65歳②'!K24," ",IF(Y20>'65歳②'!K24,W23,'65歳②'!L5*Y22))))) -> 973805.6 | AA23: =IF(AA20<60," ",IF(AA20<65,IF('65歳②'!J5=0," ",'65歳②'!J5),IF('65歳②'!K22=0,'65歳②'!L5,IF(AA20<'65歳②'!K24," ",IF(AA20>'65歳②'!K24,Y23,'65歳②'!L5*AA22))))) -> 973805.6
B24: 振替加算 | E24: =IF(E23=" "," ",IF(E20<65," ",IF('65歳②'!L40=0," ",VLOOKUP('65歳①'!C15,'65歳②'!Q20:S36,3,FALSE)))) ->  | G24: =IF(G23=" "," ",IF(G20<65," ",IF('65歳②'!L40=0," ",VLOOKUP('65歳①'!C15,'65歳②'!Q20:S36,3,FALSE)))) ->  | I24: =IF(I23=" "," ",IF(I20<65," ",IF('65歳②'!L40=0," ",VLOOKUP('65歳①'!C15,'65歳②'!Q20:S36,3,FALSE)))) ->  | K24: =IF(K23=" "," ",IF(K20<65," ",IF('65歳②'!L40=0," ",VLOOKUP('65歳①'!C15,'65歳②'!Q20:S36,3,FALSE)))) ->  | M24: =IF(M23=" "," ",IF(M20<65," ",IF('65歳②'!L40=0," ",VLOOKUP('65歳①'!C15,'65歳②'!Q20:S36,3,FALSE)))) ->  | O24: =IF(O23=" "," ",IF(O20<65," ",IF('65歳②'!L40=0," ",VLOOKUP('65歳①'!C15,'65歳②'!Q20:S36,3,FALSE)))) ->  | Q24: =IF(Q23=" "," ",IF(Q20<65," ",IF('65歳②'!L40=0," ",VLOOKUP('65歳①'!C15,'65歳②'!Q20:S36,3,FALSE)))) ->  | S24: =IF(S23=" "," ",IF(S20<65," ",IF('65歳②'!L40=0," ",VLOOKUP('65歳①'!C15,'65歳②'!Q20:S36,3,FALSE)))) ->  | U24: =IF(U23=" "," ",IF(U20<65," ",IF('65歳②'!L40=0," ",VLOOKUP('65歳①'!C15,'65歳②'!Q20:S36,3,FALSE)))) ->  | W24: =IF(W23=" "," ",IF(W20<65," ",IF('65歳②'!L40=0," ",VLOOKUP('65歳①'!C15,'65歳②'!Q20:S36,3,FALSE)))) ->  | Y24: =IF(Y23=" "," ",IF(Y20<65," ",IF('65歳②'!L40=0," ",VLOOKUP('65歳①'!C15,'65歳②'!Q20:S36,3,FALSE)))) -> 0 | AA24: =IF(AA23=" "," ",IF(AA20<65," ",IF('65歳②'!L40=0," ",VLOOKUP('65歳①'!C15,'65歳②'!Q20:S36,3,FALSE)))) -> 0
B25: 小計 | E25: =IF(E24=" ",E23,E23+E24) ->  | G25: =IF(G24=" ",G23,G23+G24) ->  | I25: =IF(I24=" ",I23,I23+I24) ->  | K25: =IF(K24=" ",K23,K23+K24) ->  | M25: =IF(M24=" ",M23,M23+M24) ->  | O25: =IF(O24=" ",O23,O23+O24) ->  | Q25: =IF(Q24=" ",Q23,Q23+Q24) ->  | S25: =IF(S24=" ",S23,S23+S24) ->  | U25: =IF(U24=" ",U23,U23+U24) ->  | W25: =IF(W24=" ",W23,W23+W24) ->  | Y25: =IF(Y24=" ",Y23,Y23+Y24) -> 973805.6 | AA25: =IF(AA24=" ",AA23,AA23+AA24) -> 973805.6
A27: ❹ | B27: 老齢厚生年金額 | E27: =IF(E20<60," ",IF(E20<65,IF('65歳②'!J7=0," ",'65歳②'!J7),IF('65歳②'!K28=0,'65歳②'!N7,IF(E20<'65歳②'!K30," ",IF('65歳②'!K30<E20,VLOOKUP('65歳②'!K30,AD8:AE22,2,FALSE)*'65歳②'!N7,'65歳②'!N7*E22))))) ->  | G27: =IF(G20<60," ",IF(G20<65,IF('65歳②'!J7=0," ",'65歳②'!J7),IF('65歳②'!K28=0,'65歳②'!N7,IF(G20<'65歳②'!K30," ",IF(G20>'65歳②'!K30,E27,'65歳②'!N7*G22))))) ->  | I27: =IF(I20<60," ",IF(I20<65,IF('65歳②'!J7=0," ",'65歳②'!J7),IF('65歳②'!K28=0,'65歳②'!N7,IF(I20<'65歳②'!K30," ",IF(I20>'65歳②'!K30,G27,'65歳②'!N7*I22))))) -> 835000 | K27: =IF(K20<60," ",IF(K20<65,IF('65歳②'!J7=0," ",'65歳②'!J7),IF('65歳②'!K28=0,'65歳②'!N7,IF(K20<'65歳②'!K30," ",IF(K20>'65歳②'!K30,I27,'65歳②'!N7*K22))))) -> 835000 | M27: =IF(M20<60," ",IF(M20<65,IF('65歳②'!J7=0," ",'65歳②'!J7),IF('65歳②'!K28=0,'65歳②'!N7,IF(M20<'65歳②'!K30," ",IF(M20>'65歳②'!K30,K27,'65歳②'!N7*M22))))) -> 835000 | O27: =IF(O20<60," ",IF(O20<65,IF('65歳②'!J7=0," ",'65歳②'!J7),IF('65歳②'!K28=0,'65歳②'!N7,IF(O20<'65歳②'!K30," ",IF(O20>'65歳②'!K30,M27,'65歳②'!N7*O22))))) -> 835000 | Q27: =IF(Q20<60," ",IF(Q20<65,IF('65歳②'!J7=0," ",'65歳②'!J7),IF('65歳②'!K28=0,'65歳②'!N7,IF(Q20<'65歳②'!K30," ",IF(Q20>'65歳②'!K30,O27,'65歳②'!N7*Q22))))) -> 835000 | S27: =IF(S20<60," ",IF(S20<65,IF('65歳②'!J7=0," ",'65歳②'!J7),IF('65歳②'!K28=0,'65歳②'!N7,IF(S20<'65歳②'!K30," ",IF(S20>'65歳②'!K30,Q27,'65歳②'!N7*S22))))) ->  | U27: =IF(U20<60," ",IF(U20<65,IF('65歳②'!J7=0," ",'65歳②'!J7),IF('65歳②'!K28=0,'65歳②'!N7,IF(U20<'65歳②'!K30," ",IF(U20>'65歳②'!K30,S27,'65歳②'!N7*U22))))) ->  | W27: =IF(W20<60," ",IF(W20<65,IF('65歳②'!J7=0," ",'65歳②'!J7),IF('65歳②'!K28=0,'65歳②'!N7,IF(W20<'65歳②'!K30," ",IF(W20>'65歳②'!K30,U27,'65歳②'!N7*W22))))) -> 1401600 | Y27: =IF(Y20<60," ",IF(Y20<65,IF('65歳②'!J7=0," ",'65歳②'!J7),IF('65歳②'!K28=0,'65歳②'!N7,IF(Y20<'65歳②'!K30," ",IF(Y20>'65歳②'!K30,W27,'65歳②'!N7*Y22))))) -> 1401600 | AA27: =IF(AA20<60," ",IF(AA20<65,IF('65歳②'!J7=0," ",'65歳②'!J7),IF('65歳②'!K28=0,'65歳②'!N7,IF(AA20<'65歳②'!K30," ",IF(AA20>'65歳②'!K30,Y27,'65歳②'!N7*AA22))))) -> 1401600
B28: 在職支給停止額 | E28: =IF(E27=" "," ",IF(E20<65,'65歳②'!C54,'65歳②'!D54)) ->  | G28: =IF(G27=" "," ",IF(G20<65,'65歳②'!C54,'65歳②'!D54)) ->  | I28: =IF(I27=" "," ",IF(I20<65,'65歳②'!C54,'65歳②'!D54)) -> 0 | K28: =IF(K27=" "," ",IF(K20<65,'65歳②'!C54,'65歳②'!D54)) -> 0 | M28: =IF(M27=" "," ",IF(M20<65,'65歳②'!C54,'65歳②'!D54)) -> 0 | O28: =IF(O27=" "," ",IF(O20<65,'65歳②'!C54,'65歳②'!D54)) -> 0 | Q28: =IF(Q27=" "," ",IF(Q20<65,'65歳②'!C54,'65歳②'!D54)) -> 0 | S28: =IF(S27=" "," ",IF(S20<65,'65歳②'!C54,'65歳②'!D54)) ->  | U28: =IF(U27=" "," ",IF(U20<65,'65歳②'!C54,'65歳②'!D54)) ->  | W28: =IF(W27=" "," ",IF(W20<65,'65歳②'!C54,'65歳②'!D54)) -> 0 | Y28: =IF(Y27=" "," ",IF(Y20<65,'65歳②'!C54,'65歳②'!D54)) -> 0 | AA28: =IF(AA27=" "," ",IF(AA20<65,'65歳②'!C54,'65歳②'!D54)) -> 0
B29: 経過的加算 | E29: =IF(E20<65," ",IF('65歳②'!K28=0,'65歳②'!N9,IF(E27=" "," ",IF('65歳②'!K30=E20,'65歳②'!N9*E22,IF('65歳②'!K30<E20,VLOOKUP('65歳②'!K30,AD8:AE22,2,FALSE)*'65歳②'!N9,'65歳②'!N9))))) ->  | G29: =IF(G20<65," ",IF('65歳②'!K28=0,'65歳②'!N9,IF(G27=" "," ",IF('65歳②'!K30=G20,'65歳②'!N9*G22,IF('65歳②'!K30<G20,E29,VLOOKUP('65歳②'!K30,AD8:AE22,2,FALSE)*'65歳②'!N9))))) ->  | I29: =IF(I20<65," ",IF('65歳②'!K28=0,'65歳②'!N9,IF(I27=" "," ",IF('65歳②'!K30=I20,'65歳②'!N9*I22,IF('65歳②'!K30<I20,G29,VLOOKUP('65歳②'!K30,AD8:AE22,2,FALSE)*'65歳②'!N9))))) ->  | K29: =IF(K20<65," ",IF('65歳②'!K28=0,'65歳②'!N9,IF(K27=" "," ",IF('65歳②'!K30=K20,'65歳②'!N9*K22,IF(K20>'65歳②'!K30,I29,VLOOKUP('65歳②'!K30,AD8:AE22,2,FAKSE)*'65歳②'!N9))))) ->  | M29: =IF(M20<65," ",IF('65歳②'!K28=0,'65歳②'!N9,IF(M27=" "," ",IF('65歳②'!K30=M20,'65歳②'!N9*M22,IF(M20>'65歳②'!K30,K29,VLOOKUP('65歳②'!K30,AD8:AE22,2,FALSE)*'65歳②'!N9))))) ->  | O29: =IF(O20<65," ",IF('65歳②'!K28=0,'65歳②'!N9,IF(O27=" "," ",IF('65歳②'!K30=O20,'65歳②'!N9*O22,IF(O20>'65歳②'!K30,M29,VLOOKUP('65歳②'!K30,AD8:AE22,2,FALSE)*'65歳②'!N9))))) ->  | Q29: =IF(Q20<65," ",IF('65歳②'!K28=0,'65歳②'!N9,IF(Q27=" "," ",IF('65歳②'!K30=Q20,'65歳②'!N9*Q22,IF(Q20>'65歳②'!K30,O29,VLOOKUP('65歳②'!K30,AD8:AE22,2,FALSE)*'65歳②'!N9))))) ->  | S29: =IF(S20<65," ",IF('65歳②'!K28=0,'65歳②'!N9,IF(S27=" "," ",IF('65歳②'!K30=S20,'65歳②'!N9*S22,IF(S20>'65歳②'!K30,Q29,VLOOKUP('65歳②'!K30,AD8:AE22,2,FALSE)*'65歳②'!N9))))) ->  | U29: =IF(U20<65," ",IF('65歳②'!K28=0,'65歳②'!N9,IF(U27=" "," ",IF('65歳②'!K30=U20,'65歳②'!N9*U22,IF(U20>'65歳②'!K30,S29,VLOOKUP('65歳②'!K30,AD8:AE22,2,FALSE)*'65歳②'!N9))))) ->  | W29: =IF(W20<65," ",IF('65歳②'!K28=0,'65歳②'!N9,IF(W27=" "," ",IF('65歳②'!K30=W20,'65歳②'!N9*W22,IF(W20>'65歳②'!K30,U29,VLOOKUP('65歳②'!K30,AD8:AE22,2,FALSE)*'65歳②'!N9))))) -> 2803.2 | Y29: =IF(Y20<65," ",IF('65歳②'!K28=0,'65歳②'!N9,IF(Y27=" "," ",IF('65歳②'!K30=Y20,'65歳②'!N9*Y22,IF(Y20>'65歳②'!K30,W29,VLOOKUP('65歳②'!K30,AD8:AE22,2,FALSE)*'65歳②'!N9))))) -> 2803.2 | AA29: =IF(AA20<65," ",IF('65歳②'!K28=0,'65歳②'!N9,IF(AA27=" "," ",IF('65歳②'!K30=AA20,'65歳②'!N9*AA22,IF(AA20>'65歳②'!K30,Y29,VLOOKUP('65歳②'!K30,AD8:AE22,2,FALSE)*'65歳②'!N9))))) -> 2803.2
B30: 配偶者加給年金
B31: 小計 | E31: =IF(E29=" ",E27,E27-E28+E29) ->  | G31: =IF(G29=" ",G27,G27-G28+G29) ->  | I31: =IF(I29=" ",I27,I27-I28+I29) -> 835000 | K31: =IF(K29=" ",K27,K27-K28+K29) -> 835000 | M31: =IF(M29=" ",M27,M27-M28+M29) -> 835000 | O31: =IF(O29=" ",O27,O27-O28+O29) -> 835000 | Q31: =IF(Q29=" ",Q27,Q27-Q28+Q29) -> 835000 | S31: =IF(S29=" ",S27,S27-S28+S29) ->  | U31: =IF(U29=" ",U27,U27-U28+U29) ->  | W31: =IF(W29=" ",W27,W27-W28+W29) -> 1404403.2 | Y31: =IF(Y29=" ",Y27,Y27-Y28+Y29) -> 1404403.2 | AA31: =IF(AA29=" ",AA27,AA27-AA28+AA29) -> 1404403.2
B32: 配偶者年金月額 | E32: =(IF(E25=" ",0,E25)+IF(E31=" ",0,E31))/12 -> 0 | G32: =(IF(G25=" ",0,G25)+IF(G31=" ",0,G31))/12 -> 0 | I32: =(IF(I25=" ",0,I25)+IF(I31=" ",0,I31))/12 -> 69583.33333 | K32: =(IF(K25=" ",0,K25)+IF(K31=" ",0,K31))/12 -> 69583.33333 | M32: =(IF(M25=" ",0,M25)+IF(M31=" ",0,M31))/12 -> 69583.33333 | O32: =(IF(O25=" ",0,O25)+IF(O31=" ",0,O31))/12 -> 69583.33333 | Q32: =(IF(Q25=" ",0,Q25)+IF(Q31=" ",0,Q31))/12 -> 69583.33333 | S32: =(IF(S25=" ",0,S25)+IF(S31=" ",0,S31))/12 -> 0 | U32: =(IF(U25=" ",0,U25)+IF(U31=" ",0,U31))/12 -> 0 | W32: =(IF(W25=" ",0,W25)+IF(W31=" ",0,W31))/12 -> 117033.6 | Y32: =(IF(Y25=" ",0,Y25)+IF(Y31=" ",0,Y31))/12 -> 198184.0667 | AA32: =(IF(AA25=" ",0,AA25)+IF(AA31=" ",0,AA31))/12 -> 198184.0667
B33: 配偶者の給与収入 | E33: =IF('65歳②'!D48=0,0,IF(E20>'65歳②'!D50,0,'65歳②'!D52/12)) -> 150000 | G33: =IF('65歳②'!D48=0,0,IF(G20>'65歳②'!D50,0,'65歳②'!D52/12)) -> 150000 | I33: =IF('65歳②'!D48=0,0,IF(I20>'65歳②'!D50,0,'65歳②'!D52/12)) -> 150000 | K33: =IF('65歳②'!D48=0,0,IF(K20>'65歳②'!D50,0,'65歳②'!D52/12)) -> 150000 | M33: =IF('65歳②'!D48=0,0,IF(K20>'65歳②'!D50,0,'65歳②'!D52/12)) -> 150000 | O33: =IF('65歳②'!D48=0,0,IF(O20>'65歳②'!D50,0,'65歳②'!D52/12)) -> 150000 | Q33: =IF('65歳②'!D48=0,0,IF(Q20>'65歳②'!D50,0,'65歳②'!D52/12)) -> 150000 | S33: =IF('65歳②'!D48=0,0,IF(S20>'65歳②'!D50,0,'65歳②'!D52/12)) -> 150000 | U33: =IF('65歳②'!D48=0,0,IF(U20>'65歳②'!D50,0,'65歳②'!D52/12)) -> 0 | W33: =IF('65歳②'!D48=0,0,IF(W20>'65歳②'!D50,0,'65歳②'!D52/12)) -> 0 | Y33: =IF('65歳②'!D48=0,0,IF(Y20>'65歳②'!D50,0,'65歳②'!D52/12)) -> 0 | AA33: =IF('65歳②'!D48=0,0,IF(AA20>'65歳②'!D50,0,'65歳②'!D52/12)) -> 0
B34: 配偶者の総収入 | E34: =E32+E33 -> 150000 | G34: =G32+G33 -> 150000 | I34: =I32+I33 -> 219583.3333 | K34: =K32+K33 -> 219583.3333 | M34: =M32+M33 -> 219583.3333 | O34: =O32+O33 -> 219583.3333 | Q34: =Q32+Q33 -> 219583.3333 | S34: =S32+S33 -> 150000 | U34: =U32+U33 -> 0 | W34: =W32+W33 -> 117033.6 | Y34: =Y32+Y33 -> 198184.0667 | AA34: =AA32+AA33 -> 198184.0667
A36: ⑶ | B36: 年金額(世帯合計) | E36: =E16+E32 -> 0 | G36: =G16+G32 -> 185448.939 | I36: =I16+I32 -> 330738.139 | K36: =K16+K32 -> 330738.139 | M36: =M16+M32 -> 330738.139 | O36: =O16+O32 -> 330738.139 | Q36: =Q16+Q32 -> 330738.139 | S36: =S16+S32 -> 227146.4723 | U36: =U16+U32 -> 227146.4723 | W36: =W16+W32 -> 344180.0723 | Y36: =Y16+Y32 -> 425330.539 | AA36: =AA16+AA32 -> 425330.539
B37: 賃金その他の収入 | E37: =E17+E33 -> 450000 | G37: =G17+G33 -> 450000 | I37: =I17+I33 -> 450000 | K37: =K17+K33 -> 450000 | M37: =M17+M33 -> 450000 | O37: =O17+O33 -> 450000 | Q37: =Q17+Q33 -> 450000 | S37: =S17+S33 -> 450000 | U37: =U17+U33 -> 300000 | W37: =W17+W33 -> 300000 | Y37: =Y17+Y33 -> 0 | AA37: =AA17+AA33 -> 0
B38: 世帯の合計収入 | E38: =E36+E37 -> 450000 | G38: =G36+G37 -> 635448.939 | I38: =I36+I37 -> 780738.139 | K38: =K36+K37 -> 780738.139 | M38: =M36+M37 -> 780738.139 | O38: =O36+O37 -> 780738.139 | Q38: =Q36+Q37 -> 780738.139 | S38: =S36+S37 -> 677146.4723 | U38: =U36+U37 -> 527146.4723 | W38: =W36+W37 -> 644180.0723 | Y38: =Y36+Y37 -> 425330.539 | AA38: =AA36+AA37 -> 425330.539
B39: 税・保険料 | E39: ='65歳①'!H8 -> 0 | G39: ='65歳①'!H8 -> 0 | I39: ='65歳①'!H8 -> 0 | K39: ='65歳①'!H8 -> 0 | M39: ='65歳①'!H8 -> 0 | O39: ='65歳①'!H8 -> 0 | Q39: ='65歳①'!H8 -> 0 | S39: ='65歳①'!H8 -> 0 | U39: ='65歳①'!H8 -> 0 | W39: ='65歳①'!H8 -> 0 | Y39: ='65歳①'!H8 -> 0 | AA39: ='65歳①'!H8 -> 0
B41: 世帯可処分所得月額 | E41: =E38-E39 -> 450000 | G41: =G38-G39 -> 635448.939 | I41: =I38-I39 -> 780738.139 | K41: =K38-K39 -> 780738.139 | M41: =M38-M39 -> 780738.139 | O41: 780738.139 | Q41: 780738.139 | S41: 677146.4723 | U41: 527146.4723 | W41: 644180.0723 | Y41: 425330.539 | AA41: 425330.539
A42: ⑷ | B42: 現在の夫婦生活費 | E42: ='65歳①'!H20 -> 231973 | G42: ='65歳①'!H20 -> 231973 | I42: ='65歳①'!H20 -> 231973 | K42: ='65歳①'!H20 -> 231973 | M42: ='65歳①'!H20 -> 231973 | O42: ='65歳①'!H20 -> 231973 | Q42: ='65歳①'!H20 -> 231973 | S42: ='65歳①'!H20 -> 231973 | U42: ='65歳①'!H20 -> 231973 | W42: ='65歳①'!H20 -> 231973 | Y42: ='65歳①'!H20 -> 231973 | AA42: ='65歳①'!H20 -> 231973
A43: 総務省家計調査生活費平均 | E43: 231973
A44: A | B44: 夫婦最低日常生活費 | E44: 232000
A45: B | B45: 夫婦ゆとり生活費 | E45: 379000
A47: ⑸ | B47: 不足生活費 | E47: =E41-E42 -> 218027 | G47: =G41-G42 -> 403475.939 | I47: =I41-I42 -> 548765.139 | K47: =K41-K42 -> 548765.139 | M47: =M41-M42 -> 548765.139 | O47: =O41-O42 -> 548765.139 | Q47: =Q41-Q42 -> 548765.139 | S47: =S41-S42 -> 445173.4723 | U47: =U41-U42 -> 295173.4723 | W47: =W41-W42 -> 412207.0723 | Y47: =Y41-Y42 -> 193357.539 | AA47: =AA41-AA42 -> 193357.539
A48: ※⑷ 家計簿や預金通帳等から過去１年間の家計の支出額を平均した額
A49: ※A 公益財団法人生命保険文化センター公表の「老後を夫婦２人で暮らしていく上で必要と考えられている最低日常生活費の平均額」は、232，000円（R４年度）
A50: ※B 公益財団法人生命保険文化センター公表の「老後を夫婦２人で暮らしていく上で必要と考えられているゆとりある老後生活費の平均額」は、379，000円（R４年度）
